Workbook

Sheet Advertising
C1: Yellow Pages | F1: Google
A2: TOTAL:
A3: =SUM(B3:AB3) -> 6747.38 | D3: =SUM(D4:D26) -> 5861.34 | G3: =SUM(G4:G26) -> 886.04 | J3: =SUM(J4:J26) -> 0 | M3: =SUM(M4:M26) -> 0
C4: 2012-01-11 | D4: 206.2 | F4: 2012-09-01 | G4: 50
C5: 2012-01-25 | D5: 969.32 | F5: 2012-10-01 | G5: 200
C6: 2012-02-11 | D6: 204.51 | F6: 2012-11-01 | G6: 306.46
C7: 2012-02-25 | D7: 969.3 | F7: 2012-12-01 | G7: 329.58
C8: 2012-03-11 | D8: 204.5
C9: 2012-04-11 | D9: 205.73
C10: 2012-04-25 | D10: 980.94
C11: 2012-05-11 | D11: 316.14
C12: 2012-05-25 | D12: 904.4
C13: 2012-06-25 | D13: 900.3

Sheet Wages
A1: TOTAL:
B2: Jeremy Eversole | C2: 32518
B3: Jody Hodge | C3: 14900
B4: Daniel Bramblett | C4: 18659

Sheet Insurance

Sheet Check Register 2012
J4: From Check Register | M4: From 1099's | P4: From 1040 | S4: From handwritten Expense List
E5: =SUMIF(F10:F132,"*",E10:E133) -> 32536.84 | K5: =SUM(K6:K27) -> 38766.04 | N5: =SUM(N6:N22) -> 66077 | Q5: =SUM(Q6:Q23) -> 45416 | T5: =SUM(T6:T24) -> 45416
B6: Chk # | C6: Date | D6: To | E6: Amount | J6: Brandon Raines | K6: =SUMIF(Table1[To],J6,Table1[Amount]) -> 2813 | M6: Jeremy Eversole | N6: 32518 | P6: Labor | Q6: 45416 | S6: Labor | T6: 45416
B7: 2264 | C7: 2012-06-01 | D7: HOA | E7: 100 | J7: Robbie Eversole | K7: =SUMIF(Table1[To],J7,Table1[Amount]) -> 1137 | M7: Jody Hodge | N7: 14900
B8: 2263 | C8: 2012-06-01 | D8: Mitchell Disposal | E8: 102 | J8: Jeremy Eversole | K8: =SUMIF(Table1[To],J8,Table1[Amount]) -> 1013 | M8: Daniel Bramblett | N8: 18659
B9: 2272 | C9: 2012-06-14 | D9: Jody Hodge | E9: 377 | J9: Eric Seavey | K9: =SUMIF(Table1[To],J9,Table1[Amount]) -> 2475.5
B10: 2318 | C10: 2012-07-26 | D10: Eric Seavey | E10: 534 | F10: =IF(E10="","","*") -> * | J10: Daniel Bramblett | K10: =SUMIF(Table1[To],J10,Table1[Amount]) -> 8465.25
B11: 2321 | C11: 2012-08-02 | D11: Jody Hodge | E11: 266 | F11: =IF(E11="","","*") -> * | J11: Daniel Bramblett | K11: =SUMIF(Table1[To],J11,Table1[Amount]) -> 8465.25
B12: 2323 | C12: 2012-08-06 | D12: AT&T | E12: 67.69 | F12: * | J12: Danny Rouger | K12: =SUMIF(Table1[To],J12,Table1[Amount]) -> 200
B13: 2329 | C13: 2012-08-09 | D13: Daniel Bramblett | J13: Dusty Cannon | K13: =SUMIF(Table1[To],J13,Table1[Amount]) -> 2711
B14: 2341 | C14: 2012-08-25 | E14: 168 | F14: * | J14: Jake Padgett | K14: =SUMIF(Table1[To],J14,Table1[Amount]) -> 110
B15: 2347 | C15: 2012-09-05 | D15: Daniel Bramblett | E15: 196 | F15: * | J15: David Padgett | K15: =SUMIF(Table1[To],J15,Table1[Amount]) -> 84
B16: 2351 | C16: 2012-09-14 | D16: Daniel Bramblett | J16: Jody Hodge | K16: =SUMIF(Table1[To],J16,Table1[Amount]) -> 4966.25
B17: 2352 | C17: 2012-09-14 | D17: Eric Seavey | J17: Andrew Terdrick | K17: =SUMIF(Table1[To],J17,Table1[Amount]) -> 5225.79
B18: 2353 | C18: 2012-09-14 | D18: Dusty Cannon | J18: Damion | K18: =SUMIF(Table1[To],J18,Table1[Amount]) -> 409
B19: 2361 | C19: 2012-10-08 | D19: Jake Padgett | E19: 110 | F19: * | J19: Jerry Edwards | K19: =SUMIF(Table1[To],J19,Table1[Amount]) -> 132
B20: 2362 | C20: 2012-10-11 | D20: Daniel Bramblett | E20: 280 | F20: * | J20: Brandon Forgey | K20: =SUMIF(Table1[To],J20,Table1[Amount]) -> 85
B21: 2364 | C21: 2012-10-16 | D21: Ocoee | E21: 40.41 | J21: Corey Cochran | K21: =SUMIF(Table1[To],J21,Table1[Amount]) -> 90
B22: 2372 | C22: 2012-10-26 | D22: Daniel Bramblett | E22: 348 | F22: * | J22: Robin Bailey | K22: =SUMIF(Table1[To],J22,Table1[Amount]) -> 384
B23: 2375 | C23: 2012-10-31 | D23: Child Support | E23: 279
B24: 2376 | C24: 2012-11-01 | D24: Brandon Raines | E24: 400 | F24: *
B25: 2378 | C25: 2012-11-02 | D25: Eric Seavey
B26: 2379 | C26: 2012-11-02 | D26: Robbie Eversole | E26: 430 | F26: *
B27: 2377 | C27: 2012-11-02 | D27: Daniel Bramblett | E27: 756 | F27: *
B28: 2381 | C28: 2012-11-09 | D28: Brandon Raines | E28: 340 | F28: *
B29: 2382 | C29: 2012-11-09 | D29: Robbie Eversole | E29: 395
B30: 2380 | C30: 2012-11-09 | D30: Daniel Bramblett | E30: 369
B31: 2383 | C31: 2012-11-11 | D31: Jeremy Eversole | E31: 135 | F31: *
B32: 2261 | C32: 2025-06-01 | D32: Andrew Terdrick | E32: 487.5 | F32: *
B33: 2262 | C33: 2025-06-01 | D33: AT&T | E33: 1588.36 | F33: *
B34: 2270 | C34: 2025-06-06 | D34: Child Support | E34: 379 | F34: *
B35: 2271 | C35: 2025-06-06 | D35: AT&T | E35: 316.14 | F35: *
B36: 2267 | C36: 2025-06-06 | D36: Andrew Terdrick | E36: 525 | F36: *
B37: 2268 | C37: 2025-06-06 | D37: Jody Hodge | E37: 630.5 | F37: *
B38: 2269 | C38: 2025-06-06 | D38: Daniel Bramblett | E38: 459 | F38: *
B39: 2265 | C39: 2025-06-06 | D39: Ocoee Utility | E39: 86.67 | F39: *
B40: 2266 | C40: 2025-06-06 | D40: Toyota | E40: 300 | F40: *
B41: 2276 | C41: 2025-06-15 | D41: Daniel Bramblett | E41: 533 | F41: *
B42: 2273 | C42: 2025-06-15 | D42: Andrew Terdrick
B43: 2274 | C43: 2025-06-15 | D43: Jeremy Eversole
B44: 2282 | C44: 2025-06-21 | D44: AT&T | E44: 64.96 | F44: *
B45: 2283 | C45: 2025-06-21 | D45: AT&T | E45: 206.7 | F45: *
B46: 2284 | C46: 2025-06-21 | D46: Andrew Terdrick | E46: 307.5 | F46: *
B47: 2279 | C47: 2025-06-21 | D47: Robin Bailey | E47: 384 | F47: *
B48: 2280 | C48: 2025-06-21 | D48: Tom McKechan (damage) | E48: 100 | F48: *
B49: 2281 | C49: 2025-06-21 | D49: VEC | E49: 146 | F49: *
B50: 2277 | C50: 2025-06-23 | D50: Jody Hodge | E50: 523.25
B51: 2278 | C51: 2025-06-23 | D51: Daniel Bramblett | E51: 419.25 | F51: *
B52: 2285 | C52: 2025-06-28 | D52: Jody Hodge | E52: 717 | F52: *
B53: 2286 | C53: 2025-06-28 | D53: Daniel Bramblett | E53: 500
B54: 2287 | C54: 2025-06-28 | D54: Andrew Terdrick | E54: 521.79
B55: 2289 | C55: 2025-07-02 | D55: Jeremy Eversole | E55: 165 | F55: *
B56: 2291 | C56: 2025-07-03 | D56: Brandon Forgey | E56: 85 | F56: *
B57: 2290 | C57: 2025-07-03 | D57: Corey Cochran | E57: 90 | F57: *
B58: 2297 | C58: 2025-07-05 | D58: Andrew Terdrick | E58: 874 | F58: *
B59: 2294 | C59: 2025-07-05 | D59: Jody Hodge | E59: 943 | F59: *
B60: 2295 | C60: 2025-07-05 | D60: Jerry Edwards | E60: 132 | F60: *
B61: 2296 | C61: 2025-07-05 | D61: Eric Seavey | E61: 448 | F61: *
B62: 2292 | C62: 2025-07-05 | D62: Dusty Cannon | E62: 130 | F62: *
B63: 2293 | C63: 2025-07-05 | D63: Daniel Bramblett | E63: 842 | F63: *
B64: 2303 | C64: 2025-07-06 | D64: Toyota | E64: 350 | F64: *
B65: 2300 | C65: 2025-07-06 | D65: AT&T | E65: 900.3 | F65: *
B66: 2301 | C66: 2025-07-06 | D66: Ocoee Utility | E66: 143.41 | F66: *
B67: 2298 | C67: 2025-07-06 | D67: Jeremy Eversole
B68: 2304 | C68: 2025-07-10 | D68: M&W | E68: 137.46
B69: 2309 | C69: 2025-07-11 | D69: Eric Seavey | E69: 216
B70: 2310 | C70: 2025-07-11 | D70: Damion | E70: 409 | F70: *
B71: 2306 | C71: 2025-07-11 | D71: 18th St Towing | E71: 160 | F71: *
B72: 2307 | C72: 2025-07-11 | D72: Andrew Terdrick | E72: 495
B73: 2308 | C73: 2025-07-11 | D73: Jody Hodge | E73: 416.5 | F73: *
B74: 2312 | C74: 2025-07-18 | D74: Jody Hodge | E74: 308 | F74: *
B75: 2313 | C75: 2025-07-18 | D75: Andrew Terdrick | E75: 790 | F75: =IF(E75="","","*") -> *
B76: 2311 | C76: 2025-07-18 | D76: Daniel Bramblett | E76: 299 | F76: *
B77: 2314 | C77: 2025-07-23 | D77: Dusty Cannon | E77: 114 | F77: *
B78: 2315 | C78: 2025-07-25 | D78: Dusty Cannon | E78: 256 | F78: *
B79: 2316 | C79: 2025-07-26 | D79: Daniel Bramblett | E79: 650 | F79: *
B80: 2317 | C80: 2025-07-26 | D80: Jody Hodge | E80: 436 | F80: *
B81: 2319 | C81: 2025-07-29 | D81: Dusty Cannon | E81: 474.5 | F81: *
B82: 2320 | C82: 2025-08-02 | D82: Daniel Bramblett | E82: 653 | F82: *
B83: 2324 | C83: 2025-08-06 | D83: AT&T | E83: 1129.51 | F83: *
B84: 2325 | C84: 2025-08-06 | D84: Child Support | E84: 395 | F84: *
B85: 2326 | C85: 2025-08-06 | D85: 18th St Towing | E85: 369.8 | F85: *
B86: 2327 | C86: 2025-08-09 | D86: Eric Seavey | E86: 180 | F86: *
B87: 2328 | C87: 2025-08-09 | D87: Jody Hodge
B88: 2330 | C88: 2025-08-10 | D88: Andrew Terdrick | E88: 300
B89: 2333 | C89: 2025-08-17 | D89: Dusty Cannon | E89: 403 | F89: *
B90: 2334 | C90: 2025-08-17 | D90: Andrew Terdrick | E90: 150 | F90: *
B91: 2339 | C91: 2025-08-23 | D91: Jeremy Eversole | E91: 67
B92: 2338 | C92: 2025-08-23 | D92: Jody Hodge | E92: 49
B93: 2335 | C93: 2025-08-23 | D93: Dusty Cannon | E93: 325
B94: 2342 | C94: 2025-08-25 | D94: Jeremy Eversole | E94: 150 | F94: *
B95: 2340 | C95: 2025-08-25 | D95: Piano Movers | E95: 275 | F95: *
B96: 2343 | C96: 2025-08-26 | D96: Child Support | E96: 279 | F96: *
B97: 2345 | C97: 2025-08-30 | D97: Dusty Cannon | E97: 624.5 | F97: *
B98: 2346 | C98: 2025-08-30 | D98: Eric Seavey | E98: 585.5 | F98: *
B99: 2344 | C99: 2025-08-30 | D99: Daniel Bramblett | E99: 756 | F99: *
B100: 2348 | C100: 2025-09-10 | D100: Toyota | E100: 300 | F100: *
B101: 2349 | C101: 2025-09-10 | D101: Ocoee Utility | E101: 40.96 | F101: *
B102: 2350 | C102: 2025-09-13 | D102: David Padgett | E102: 84 | F102: *
B103: 2354 | C103: 2025-09-19 | D103: Daniel Bramblett | E103: 250 | F103: *
B104: 2355 | C104: 2025-09-19 | D104: AT&T | E104: 142.59 | F104: *
B105: 2356 | C105: 2025-09-19 | D105: VEC | E105: 201 | F105: *
B106: 2360 | C106: 2025-10-05 | D106: Eric Seavey | E106: 212 | F106: *
B107: 2363 | C107: 2025-10-11 | D107: Brandon Raines | E107: 180 | F107: *
B108: 2366 | C108: 2025-10-19 | D108: Daniel Bramblett | E108: 686 | F108: *
B109: 2368 | C109: 2025-10-21 | D109: Dusty Cannon | E109: 159 | F109: *
B110: 2370 | C110: 2025-10-25 | D110: Broken Lamp | E110: 70 | F110: *
B111: 2371 | C111: 2025-10-25 | D111: Brandon Raines | E111: 400 | F111: *
B112: 2373 | C112: 2025-10-26 | D112: Jeremy Eversole | E112: 196 | F112: *
B113: 2388 | C113: 2025-11-20 | D113: Daniel Bramblet | E113: 381
B114: 2389 | C114: 2025-11-21 | D114: Dusty Cannon | E114: 225
B115: 2399 | C115: 2025-11-25 | D115: Andrew Tedrick | E115: 330 | F115: *
B116: 2396 | C116: 2025-11-25 | D116: Daniel Bramblet | E116: 340 | F116: *
B117: 2397 | C117: 2025-11-25 | D117: Brandon Raines | E117: 435 | F117: *
B118: 2398 | C118: 2025-11-25 | D118: Robbie Eversole | E118: 312 | F118: *
B119: 2390 | C119: 2025-11-25 | D119: Jeremy Eversole | E119: 300 | F119: *
B120: 2391 | C120: 2025-11-25 | D120: VEC | E120: 133 | F120: *
B121: 2392 | C121: 2025-11-25 | D121: Toyota | E121: 300
B122: 2400 | C122: 2025-12-03 | D122: Brandon Raines | E122: 758
B123: 2387 | C123: 2025-12-17 | D123: D | E123: 60 | F123: *
B124: 2384 | D124: Robbie | E124: 587 | F124: *
B125: 2385
B126: 2386
B127: 2374 | D127: land payment | E127: 900
B128: 2369 | D128: Danny Rouger | E128: 200
B129: 2367 | D129: Brandon Raines | E129: 300
B130: 2365 | D130: AT&T | E130: 71 | F130: *
B131: 2357
B132: 2358
A133: Different Book | B133: 2359 | F133: =IF(E133="","","*") -> 
B134: 2336 | D134: Eric Seavey | E134: 300
B135: 2337 | D135: Daniel Bramblett | E135: 469
B136: 2331 | D136: Jody Hodge | E136: 300
B137: 2332
B138: 2322 | D138: Andrew Terdrick | E138: 775
B139: 2305 | D139: M&W | E139: 142.67
B140: 2302 | D140: Child Support | E140: 379
B141: 2299 | D141: Blank for Benton
B142: 2288 | D142: Towing 45 Celica
B143: 2275
B145: 2401 | D145: Mitchells | E145: 51
B146: 2393
B147: 2394
B148: 2395

Sheet 2014
A4: Income Statement
A5: Contract Labor | B5: 8928.68
A6: Labor | B6: 0
